[Event "Live Chess"]
[Site "Chess.com"]
[Date "2023.09.16"]
[Round "-"]
[White "Dfran2015"]
[Black "nicolasgouvea"]
[Result "1-0"]
[WhiteElo "560"]
[BlackElo "334"]
[TimeControl "900+5"]
[EndTime "6:23:33 PDT"]
[Termination "Dfran2015 venceu por xeque-mate"]

1. e4 {[%clk 0:14:44.5]} 1... e5 {[%clk 0:15:04.1]} 2. Nf3 {[%clk 0:14:48.1]}
2... Nc6 {[%clk 0:15:06.6]} 3. Bc4 {[%clk 0:14:48.9]} 3... Bc5 {[%clk
0:15:04.5]} 4. O-O {[%clk 0:14:50.6]} 4... Nf6 {[%clk 0:15:05.4]} 5. d3 {[%clk
0:14:53.2]} 5... d6 {[%clk 0:15:03.2]} 6. Ng5 {[%clk 0:14:53.2]} 6... Bg4 {[%clk
0:15:04.4]} 7. Qe1 {[%clk 0:14:52.1]} 7... h6 {[%clk 0:15:04.6]} 8. Nxf7 {[%clk
0:14:53.7]} 8... O-O {[%clk 0:15:00.5]} 9. Nxd8+ {[%clk 0:14:55.5]} 9... Rf7
{[%clk 0:14:46.8]} 10. Bxf7+ {[%clk 0:14:53.7]} 10... Kf8 {[%clk 0:14:46.6]} 11.
Nxc6 {[%clk 0:14:52.1]} 11... Kxf7 {[%clk 0:14:48.7]} 12. Na5 {[%clk 0:14:41.9]}
12... Nd7 {[%clk 0:14:44]} 13. Nxb7 {[%clk 0:14:42.5]} 13... Rb8 {[%clk
0:14:41.6]} 14. Nxc5 {[%clk 0:14:41.3]} 14... Nxc5 {[%clk 0:14:44.3]} 15. Qc3
{[%clk 0:14:40.5]} 15... Kf6 {[%clk 0:14:42.3]} 16. Qc4 {[%clk 0:14:38.4]} 16...
d5 {[%clk 0:14:43.7]} 17. Qxc5 {[%clk 0:14:39.2]} 17... dxe4 {[%clk 0:14:45.8]}
18. dxe4 {[%clk 0:14:37.7]} 18... Bd7 {[%clk 0:14:30.8]} 19. Qxc7 {[%clk
0:14:34.5]} 19... Rb4 {[%clk 0:14:30]} 20. Qxd7 {[%clk 0:14:32.3]} 20... Kg6
{[%clk 0:14:31.8]} 21. Qe6+ {[%clk 0:14:33.4]} 21... Kh7 {[%clk 0:14:33.4]} 22.
Qf5+ {[%clk 0:14:35.6]} 22... Kg8 {[%clk 0:14:34.6]} 23. Qxe5 {[%clk 0:14:34.7]}
23... a6 {[%clk 0:14:33.7]} 24. Qd5+ {[%clk 0:14:36.7]} 24... Kf8 {[%clk
0:14:32.8]} 25. Qd6+ {[%clk 0:14:37.4]} 25... Ke8 {[%clk 0:14:36]} 26. Qxb4
{[%clk 0:14:40.3]} 26... Kd8 {[%clk 0:14:38.2]} 27. Qb6+ {[%clk 0:14:43.8]}
27... Ke8 {[%clk 0:14:40.7]} 28. Qxa6 {[%clk 0:14:48]} 28... Kf8 {[%clk
0:14:44.4]} 29. Bxh6 {[%clk 0:14:47.6]} 29... gxh6 {[%clk 0:14:46.3]} 30. Qxh6+
{[%clk 0:14:51.6]} 30... Ke8 {[%clk 0:14:49.9]} 31. e5 {[%clk 0:14:54.2]} 31...
Kd8 {[%clk 0:14:52.4]} 32. e6 {[%clk 0:14:58.5]} 32... Ke8 {[%clk 0:14:56.3]}
33. Qg6+ {[%clk 0:14:55.8]} 33... Ke7 {[%clk 0:14:58.6]} 34. Qf7+ {[%clk
0:14:58.8]} 34... Kd6 {[%clk 0:15:01.5]} 35. Rd1+ {[%clk 0:15:02.2]} 35... Ke5
{[%clk 0:15:04.1]} 36. e7 {[%clk 0:14:56.4]} 36... Ke4 {[%clk 0:15:05.6]} 37.
e8=Q# {[%clk 0:14:59.4]} 1-0

[Event "Live Chess"]
[Site "Chess.com"]
[Date "2023.09.16"]
[Round "-"]
[White "RenatoMizuki"]
[Black "DaviLucasMoraisLima"]
[Result "1-0"]
[WhiteElo "1165"]
[BlackElo "1195"]
[TimeControl "900+5"]
[EndTime "6:26:27 PDT"]
[Termination "RenatoMizuki venceu por xeque-mate"]

1. e4 {[%clk 0:15:02.6]} 1... e5 {[%clk 0:15:02.2]} 2. Nf3 {[%clk 0:15:04.9]}
2... d6 {[%clk 0:15:05.7]} 3. Bc4 {[%clk 0:15:07.5]} 3... Bg4 {[%clk 0:15:07.6]}
4. h3 {[%clk 0:15:06.2]} 4... Bh5 {[%clk 0:15:10]} 5. c3 {[%clk 0:15:04.7]} 5...
Be7 {[%clk 0:15:09.4]} 6. d3 {[%clk 0:15:07.3]} 6... Nf6 {[%clk 0:15:12]} 7. b4
{[%clk 0:15:02.3]} 7... O-O {[%clk 0:15:06.5]} 8. a4 {[%clk 0:15:02.2]} 8... Nc6
{[%clk 0:15:04.3]} 9. b5 {[%clk 0:15:04.7]} 9... Na5 {[%clk 0:15:07.9]} 10. Ba2
{[%clk 0:15:07.8]} 10... c6 {[%clk 0:15:09.6]} 11. bxc6 {[%clk 0:15:02.1]} 11...
Nxc6 {[%clk 0:15:12.3]} 12. Bg5 {[%clk 0:14:52.5]} 12... d5 {[%clk 0:14:57.1]}
13. Bxf6 {[%clk 0:14:42.9]} 13... Bxf6 {[%clk 0:14:59.9]} 14. Bxd5 {[%clk
0:14:25.3]} 14... Na5 {[%clk 0:14:59.4]} 15. O-O {[%clk 0:14:15.8]} 15... Bh4
{[%clk 0:14:59.2]} 16. Nbd2 {[%clk 0:14:01.2]} 16... Qc7 {[%clk 0:14:35.8]} 17.
c4 {[%clk 0:13:58.2]} 17... Nc6 {[%clk 0:14:22.6]} 18. Bxc6 {[%clk 0:13:46.1]}
18... Qxc6 {[%clk 0:14:24.1]} 19. Qb3 {[%clk 0:13:48.1]} 19... Bxf3 {[%clk
0:14:25.3]} 20. Nxf3 {[%clk 0:13:49.3]} 20... Bf6 {[%clk 0:14:28.2]} 21. Rab1
{[%clk 0:13:50.6]} 21... b6 {[%clk 0:14:29]} 22. Rfc1 {[%clk 0:13:38.8]} 22...
Rfd8 {[%clk 0:14:19.8]} 23. Kf1 {[%clk 0:13:19]} 23... Qd6 {[%clk 0:14:19.1]}
24. Ke2 {[%clk 0:13:17.5]} 24... Rd7 {[%clk 0:14:20.5]} 25. Rd1 {[%clk
0:13:10.6]} 25... Qc6 {[%clk 0:14:05.1]} 26. Qb5 {[%clk 0:13:02.6]} 26... Qxb5
{[%clk 0:14:03.7]} 27. cxb5 {[%clk 0:12:57.8]} 27... Rc8 {[%clk 0:13:59.8]} 28.
Rbc1 {[%clk 0:12:57.8]} 28... Rcd8 {[%clk 0:14:00.9]} 29. g4 {[%clk 0:12:54.1]}
29... Be7 {[%clk 0:13:59]} 30. Nxe5 {[%clk 0:12:45.5]} 30... Rb7 {[%clk
0:13:43.7]} 31. Nc6 {[%clk 0:12:39.3]} 31... Rdd7 {[%clk 0:13:46.1]} 32. Nxe7+
{[%clk 0:12:42]} 32... Rxe7 {[%clk 0:13:48]} 33. Rc8+ {[%clk 0:12:46.2]} 33...
Re8 {[%clk 0:13:51.6]} 34. Rxe8# {[%clk 0:12:50.6]} 1-0

[Event "Live Chess"]
[Site "Chess.com"]
[Date "2023.09.16"]
[Round "-"]
[White "GigiAlmeidaXadrez"]
[Black "Enzoellobo"]
[Result "1-0"]
[WhiteElo "1093"]
[BlackElo "180"]
[TimeControl "900+5"]
[EndTime "6:29:56 PDT"]
[Termination "GigiAlmeidaXadrez venceu por xeque-mate"]

1. e4 {[%clk 0:15:02.6]} 1... d5 {[%clk 0:15:00.6]} 2. exd5 {[%clk 0:14:51.5]}
2... e5 {[%clk 0:14:54.6]} 3. dxe6 {[%clk 0:14:52]} 3... fxe6 {[%clk 0:14:57.2]}
4. Nf3 {[%clk 0:14:48.5]} 4... g5 {[%clk 0:14:53.8]} 5. Bc4 {[%clk 0:14:36.4]}
5... Bb4 {[%clk 0:14:51]} 6. a3 {[%clk 0:14:23.1]} 6... Bc5 {[%clk 0:14:50.2]}
7. d3 {[%clk 0:14:17.2]} 7... Qe7 {[%clk 0:14:47.5]} 8. Bxg5 {[%clk 0:14:09.8]}
8... Qf7 {[%clk 0:14:46.5]} 9. O-O {[%clk 0:13:56.9]} 9... Nf6 {[%clk
0:14:45.6]} 10. Nc3 {[%clk 0:13:15.9]} 10... Kf8 {[%clk 0:14:48.9]} 11. d4
{[%clk 0:12:47]} 11... h5 {[%clk 0:14:49.5]} 12. dxc5 {[%clk 0:12:42.8]} 12...
b6 {[%clk 0:14:49.7]} 13. cxb6 {[%clk 0:12:28.4]} 13... axb6 {[%clk 0:14:46.6]}
14. Qd8+ {[%clk 0:12:13.5]} 14... Ne8 {[%clk 0:14:44.5]} 15. Qd3 {[%clk
0:11:35.8]} 15... Rg8 {[%clk 0:14:41.9]} 16. Bh4 {[%clk 0:11:00.8]} 16... Rg6
{[%clk 0:14:30.9]} 17. Ne5 {[%clk 0:10:43.6]} 17... Qe7 {[%clk 0:14:24.6]} 18.
Nxg6+ {[%clk 0:10:41.8]} 18... Kf7 {[%clk 0:14:20.5]} 19. Nxe7 {[%clk
0:10:42.4]} 19... Kf8 {[%clk 0:14:11.1]} 20. Nxc8 {[%clk 0:10:32.3]} 20... e5
{[%clk 0:14:04.3]} 21. Qf5+ {[%clk 0:10:24.8]} 21... Kg7 {[%clk 0:14:03.5]} 22.
Qf7+ {[%clk 0:10:18.1]} 22... Kh6 {[%clk 0:14:03.3]} 23. Qxe8 {[%clk 0:10:05.5]}
23... Nc6 {[%clk 0:14:00.5]} 24. Qxc6+ {[%clk 0:10:01.7]} 24... Kg7 {[%clk
0:13:51.1]} 25. Qxa8 {[%clk 0:09:52.4]} 25... c5 {[%clk 0:13:45.5]} 26. Qb7+
{[%clk 0:09:44.5]} 26... Kg6 {[%clk 0:13:41.1]} 27. Qf7+ {[%clk 0:09:41.2]}
27... Kh6 {[%clk 0:13:38.4]} 28. Qf6+ {[%clk 0:09:39.3]} 28... Kh7 {[%clk
0:13:39]} 29. Bd3+ {[%clk 0:09:37.2]} 29... Kg8 {[%clk 0:13:39.9]} 30. Ne7#
{[%clk 0:09:37.7]} 1-0

[Event "Live Chess"]
[Site "Chess.com"]
[Date "2023.09.16"]
[Round "-"]
[White "nicolasgouvea"]
[Black "DaviLucasMoraisLima"]
[Result "0-1"]
[WhiteElo "334"]
[BlackElo "1195"]
[TimeControl "900+5"]
[EndTime "6:31:01 PDT"]
[Termination "DaviLucasMoraisLima venceu por xeque-mate"]

1. e4 {[%clk 0:15:01.8]} 1... e5 {[%clk 0:14:59.7]} 2. Nf3 {[%clk 0:15:05.2]}
2... d6 {[%clk 0:15:03.2]} 3. Bc4 {[%clk 0:15:04.4]} 3... Bg4 {[%clk 0:15:06.4]}
4. d3 {[%clk 0:15:00.7]} 4... Nc6 {[%clk 0:15:09.1]} 5. O-O {[%clk 0:14:52.6]}
5... Nd4 {[%clk 0:15:11.2]} 6. Nbd2 {[%clk 0:14:43.4]} 6... Qf6 {[%clk
0:15:11.4]} 7. c3 {[%clk 0:14:42.4]} 7... Nxf3+ {[%clk 0:15:13.7]} 8. Nxf3
{[%clk 0:14:44.3]} 8... Bxf3 {[%clk 0:15:16]} 9. Qxf3 {[%clk 0:14:41.4]} 9...
Qxf3 {[%clk 0:15:18.5]} 10. gxf3 {[%clk 0:14:42.1]} 10... Nf6 {[%clk 0:15:15]}
11. Bg5 {[%clk 0:14:38.3]} 11... Nh5 {[%clk 0:15:09.2]} 12. d4 {[%clk 0:14:27]}
12... f6 {[%clk 0:15:09]} 13. Bh4 {[%clk 0:14:26.5]} 13... g5 {[%clk 0:15:11.9]}
14. Bg3 {[%clk 0:14:29.8]} 14... Nxg3 {[%clk 0:15:15]} 15. fxg3 {[%clk
0:14:31.2]} 15... h5 {[%clk 0:15:18.1]} 16. dxe5 {[%clk 0:14:27]} 16... dxe5
{[%clk 0:15:18.8]} 17. g4 {[%clk 0:14:26.1]} 17... hxg4 {[%clk 0:15:17.8]} 18.
fxg4 {[%clk 0:14:28.9]} 18... Rh4 {[%clk 0:15:19.6]} 19. Be2 {[%clk 0:14:27.7]}
19... Bc5+ {[%clk 0:15:19.5]} 20. Kh1 {[%clk 0:14:29.9]} 20... O-O-O {[%clk
0:15:22.5]} 21. b4 {[%clk 0:14:33.4]} 21... Bb6 {[%clk 0:15:20.9]} 22. Rad1
{[%clk 0:14:18.8]} 22... Rdh8 {[%clk 0:15:21.5]} 23. Rxf6 {[%clk 0:14:07.7]}
23... Rxh2# {[%clk 0:15:22.9]} 0-1

[Event "Live Chess"]
[Site "Chess.com"]
[Date "2023.09.16"]
[Round "-"]
[White "DaviLucasMoraisLima"]
[Black "Enzoellobo"]
[Result "1-0"]
[WhiteElo "1195"]
[BlackElo "180"]
[TimeControl "900+5"]
[EndTime "6:34:29 PDT"]
[Termination "DaviLucasMoraisLima venceu por xeque-mate"]

1. e4 {[%clk 0:14:58.6]} 1... d5 {[%clk 0:15:02.3]} 2. e5 {[%clk 0:14:59.9]}
2... e6 {[%clk 0:14:48]} 3. d4 {[%clk 0:14:59.9]} 3... Bb4+ {[%clk 0:14:47.8]}
4. c3 {[%clk 0:15:02.9]} 4... Be7 {[%clk 0:14:47]} 5. Qg4 {[%clk 0:14:54.8]}
5... f5 {[%clk 0:14:46.1]} 6. Qxg7 {[%clk 0:14:52.7]} 6... Bf8 {[%clk
0:14:45.3]} 7. Qxh8 {[%clk 0:14:53.2]} 7... Qg5 {[%clk 0:14:43.3]} 8. Bxg5
{[%clk 0:14:50.7]} 8... Nc6 {[%clk 0:14:38.2]} 9. Qxg8 {[%clk 0:14:52.4]} 9...
Bd7 {[%clk 0:14:27.1]} 10. Qxh7 {[%clk 0:14:37.5]} 10... Nd8 {[%clk 0:14:25]}
11. Qg8 {[%clk 0:14:37]} 11... b5 {[%clk 0:14:13.6]} 12. Bh6 {[%clk 0:14:37.5]}
12... Ke7 {[%clk 0:14:10.2]} 13. Qxf8# {[%clk 0:14:39.8]} 1-0

[Event "Live Chess"]
[Site "Chess.com"]
[Date "2023.09.16"]
[Round "-"]
[White "Dfran2015"]
[Black "Timsoso"]
[Result "1-0"]
[WhiteElo "576"]
[BlackElo "222"]
[TimeControl "900+5"]
[EndTime "6:35:08 PDT"]
[Termination "Dfran2015 venceu por xeque-mate"]

1. e4 {[%clk 0:14:51.3]} 1... e5 {[%clk 0:15:03.1]} 2. Nf3 {[%clk 0:14:55.7]}
2... Nc6 {[%clk 0:15:01]} 3. Bc4 {[%clk 0:14:51.9]} 3... d6 {[%clk 0:15:01.5]}
4. d4 {[%clk 0:14:50.3]} 4... Bg4 {[%clk 0:15:03.7]} 5. dxe5 {[%clk 0:14:48.4]}
5... Bxf3 {[%clk 0:15:06.3]} 6. Qxf3 {[%clk 0:14:48.7]} 6... Nxe5 {[%clk
0:15:06.3]} 7. Qe2 {[%clk 0:14:29]} 7... d5 {[%clk 0:15:03.7]} 8. Bxd5 {[%clk
0:14:24.3]} 8... Nd7 {[%clk 0:14:59.8]} 9. Bxb7 {[%clk 0:14:28.5]} 9... Qf6
{[%clk 0:14:46.9]} 10. Bxa8 {[%clk 0:14:27.3]} 10... Nc5 {[%clk 0:14:29]} 11.
O-O {[%clk 0:14:25]} 11... Qd8 {[%clk 0:14:18.8]} 12. Bc6+ {[%clk 0:14:26.1]}
12... Nd7 {[%clk 0:14:14.7]} 13. Rd1 {[%clk 0:14:19]} 13... Bb4 {[%clk 0:14:04]}
14. Qd3 {[%clk 0:14:15]} 14... Ba5 {[%clk 0:13:55.7]} 15. Qxd7+ {[%clk
0:14:16.8]} 15... Qxd7 {[%clk 0:13:29.5]} 16. Bxd7+ {[%clk 0:14:18.9]} 16... Kf8
{[%clk 0:13:17.8]} 17. Be3 {[%clk 0:14:16.9]} 17... Ke7 {[%clk 0:13:19]} 18.
Bc5+ {[%clk 0:14:18.5]} 18... Kf6 {[%clk 0:13:12.6]} 19. b3 {[%clk 0:14:09.7]}
19... Bb6 {[%clk 0:13:14.1]} 20. Bxb6 {[%clk 0:14:11.2]} 20... axb6 {[%clk
0:13:12.4]} 21. Nc3 {[%clk 0:14:05.1]} 21... Ne7 {[%clk 0:13:13.2]} 22. Nb5
{[%clk 0:14:04.2]} 22... c6 {[%clk 0:13:13.9]} 23. Nd4 {[%clk 0:14:00.8]} 23...
c5 {[%clk 0:13:13.4]} 24. Nb5 {[%clk 0:13:40]} 24... Ng6 {[%clk 0:12:50.1]} 25.
Rd6+ {[%clk 0:13:01]} 25... Ke7 {[%clk 0:12:52.2]} 26. Rad1 {[%clk 0:12:51.2]}
26... Kd8 {[%clk 0:12:51.9]} 27. Bf5+ {[%clk 0:12:48.5]} 27... Ke7 {[%clk
0:12:48.2]} 28. Bxg6 {[%clk 0:12:52.4]} 28... fxg6 {[%clk 0:12:49.9]} 29. Rd7+
{[%clk 0:12:53.8]} 29... Ke8 {[%clk 0:12:51.8]} 30. Nc7+ {[%clk 0:12:54.3]}
30... Kf8 {[%clk 0:12:50.2]} 31. Rd8+ {[%clk 0:12:55.9]} 31... Kf7 {[%clk
0:12:47.2]} 32. R1d7+ {[%clk 0:12:59.3]} 32... Kf6 {[%clk 0:12:42.2]} 33. Rxh8
{[%clk 0:12:58.7]} 33... Ke5 {[%clk 0:12:43.1]} 34. Re7+ {[%clk 0:13:01.3]}
34... Kd4 {[%clk 0:12:44.5]} 35. e5 {[%clk 0:13:05.8]} 35... Kc3 {[%clk
0:12:45.1]} 36. e6 {[%clk 0:13:10.3]} 36... h5 {[%clk 0:12:44.2]} 37. Rd7 {[%clk
0:13:14.4]} 37... Kxc2 {[%clk 0:12:38.9]} 38. e7 {[%clk 0:13:18.6]} 38... g5
{[%clk 0:12:37.1]} 39. e8=Q {[%clk 0:13:22.1]} 39... h4 {[%clk 0:12:39.6]} 40.
Qe2+ {[%clk 0:13:25.8]} 40... Kb1 {[%clk 0:12:36.6]} 41. Qd1+ {[%clk 0:13:28.4]}
41... Kxa2 {[%clk 0:12:39.3]} 42. Qc2+ {[%clk 0:13:30.7]} 42... Ka3 {[%clk
0:12:40.6]} 43. Nb5+ {[%clk 0:13:34]} 43... Kb4 {[%clk 0:12:42.7]} 44. Qc4+
{[%clk 0:13:29.6]} 44... Ka5 {[%clk 0:12:43.9]} 45. Ra7# {[%clk 0:13:32.8]} 1-0

[Event "Live Chess"]
[Site "Chess.com"]
[Date "2023.09.16"]
[Round "-"]
[White "DaviLucasMoraisLima"]
[Black "AnaClaraCV"]
[Result "1-0"]
[WhiteElo "1196"]
[BlackElo "706"]
[TimeControl "900+5"]
[EndTime "6:37:20 PDT"]
[Termination "DaviLucasMoraisLima venceu por xeque-mate"]

1. e4 {[%clk 0:15:02.2]} 1... c5 {[%clk 0:15:00.8]} 2. Bc4 {[%clk 0:15:04.9]}
2... b5 {[%clk 0:15:04.2]} 3. Bd5 {[%clk 0:15:06.8]} 3... d6 {[%clk 0:15:06.9]}
4. Bxa8 {[%clk 0:15:10.1]} 4... Ba6 {[%clk 0:15:04.9]} 5. Bd5 {[%clk 0:15:09.9]}
5... Nc6 {[%clk 0:14:41.7]} 6. Bxc6+ {[%clk 0:15:10.7]} 6... Qd7 {[%clk
0:14:17.3]} 7. Bxd7+ {[%clk 0:15:11.7]} 7... Kxd7 {[%clk 0:14:21.1]} 8. Qg4+
{[%clk 0:15:14.1]} 8... Ke8 {[%clk 0:14:21.9]} 9. a4 {[%clk 0:15:15.4]} 9...
bxa4 {[%clk 0:14:25.5]} 10. Rxa4 {[%clk 0:15:16.7]} 10... c4 {[%clk 0:14:24.7]}
11. Rxa6 {[%clk 0:15:19.4]} 11... Nf6 {[%clk 0:14:25.7]} 12. Qc8# {[%clk
0:15:21.6]} 1-0

[Event "Live Chess"]
[Site "Chess.com"]
[Date "2023.09.16"]
[Round "-"]
[White "GigiAlmeidaXadrez"]
[Black "RenatoMizuki"]
[Result "1/2-1/2"]
[WhiteElo "1095"]
[BlackElo "1163"]
[TimeControl "900+5"]
[EndTime "6:37:31 PDT"]
[Termination "Empate por repetição"]

1. e4 {[%clk 0:15:03.4]} 1... e5 {[%clk 0:15:01.9]} 2. Nf3 {[%clk 0:15:06.6]}
2... Nc6 {[%clk 0:15:04.5]} 3. Bc4 {[%clk 0:15:09.6]} 3... Bc5 {[%clk
0:15:06.4]} 4. O-O {[%clk 0:15:10.7]} 4... a6 {[%clk 0:15:02.7]} 5. d3 {[%clk
0:15:05.8]} 5... b5 {[%clk 0:15:03.9]} 6. Bd5 {[%clk 0:15:07.5]} 6... Bb7 {[%clk
0:15:02.9]} 7. Ng5 {[%clk 0:14:48.5]} 7... Nh6 {[%clk 0:14:46.9]} 8. Nf3 {[%clk
0:14:34.9]} 8... Ng8 {[%clk 0:14:44]} 9. Ng5 {[%clk 0:14:30.3]} 9... Nh6 {[%clk
0:14:45.5]} 10. Nf3 {[%clk 0:14:32.5]} 10... Qf6 {[%clk 0:14:38]} 11. Bg5 {[%clk
0:14:13.4]} 11... Qg6 {[%clk 0:14:31.4]} 12. a3 {[%clk 0:13:44.4]} 12... O-O
{[%clk 0:14:10.9]} 13. Nc3 {[%clk 0:13:32.7]} 13... Rab8 {[%clk 0:13:53.8]} 14.
Qd2 {[%clk 0:13:27.8]} 14... Ng4 {[%clk 0:13:43.4]} 15. Nh4 {[%clk 0:13:18.5]}
15... Qd6 {[%clk 0:13:22.3]} 16. Nf5 {[%clk 0:13:10.8]} 16... Qg6 {[%clk
0:13:07.2]} 17. Nh4 {[%clk 0:12:49.7]} 17... Qd6 {[%clk 0:12:59.5]} 18. Nf5
{[%clk 0:12:48.5]} 18... Qg6 {[%clk 0:12:55.7]} 19. Nh4 {[%clk 0:12:50.7]}
1/2-1/2

[Event "Live Chess"]
[Site "Chess.com"]
[Date "2023.09.16"]
[Round "-"]
[White "kadabraxadrez"]
[Black "Dfran2015"]
[Result "1-0"]
[WhiteElo "917"]
[BlackElo "561"]
[TimeControl "900+5"]
[EndTime "6:42:11 PDT"]
[Termination "kadabraxadrez venceu por xeque-mate"]

1. e4 {[%clk 0:15:01.2]} 1... e5 {[%clk 0:15:02.1]} 2. Nf3 {[%clk 0:15:04.8]}
2... Nc6 {[%clk 0:15:03.5]} 3. Bc4 {[%clk 0:15:08.2]} 3... Nf6 {[%clk
0:15:02.2]} 4. d3 {[%clk 0:15:04.7]} 4... d5 {[%clk 0:14:58.1]} 5. exd5 {[%clk
0:15:02.3]} 5... Nxd5 {[%clk 0:15:02.3]} 6. Bxd5 {[%clk 0:15:02.7]} 6... Qxd5
{[%clk 0:15:06.4]} 7. Nc3 {[%clk 0:15:05.9]} 7... Qc5 {[%clk 0:15:04.4]} 8. O-O
{[%clk 0:15:05.7]} 8... e4 {[%clk 0:15:00.3]} 9. Nxe4 {[%clk 0:14:57.1]} 9...
Qf5 {[%clk 0:14:54.8]} 10. Re1 {[%clk 0:14:48.4]} 10... Qe6 {[%clk 0:13:00.2]}
11. Nc5 {[%clk 0:14:41.1]} 11... Qxe1+ {[%clk 0:12:36.1]} 12. Qxe1+ {[%clk
0:14:44.1]} 12... Be6 {[%clk 0:12:34.4]} 13. Nxe6 {[%clk 0:14:46.7]} 13... fxe6
{[%clk 0:12:38.7]} 14. Qxe6+ {[%clk 0:14:49.4]} 14... Ne7 {[%clk 0:12:39.5]} 15.
d4 {[%clk 0:14:42.2]} 15... g6 {[%clk 0:12:21.3]} 16. Bf4 {[%clk 0:14:41.2]}
16... Kd8 {[%clk 0:12:12.7]} 17. Ne5 {[%clk 0:14:32.3]} 17... Nf5 {[%clk
0:12:12.1]} 18. Qd7# {[%clk 0:14:29]} 1-0

[Event "Live Chess"]
[Site "Chess.com"]
[Date "2023.09.16"]
[Round "-"]
[White "GigiAlmeidaXadrez"]
[Black "DaviLucasMoraisLima"]
[Result "0-1"]
[WhiteElo "1088"]
[BlackElo "1209"]
[TimeControl "900+5"]
[EndTime "6:44:46 PDT"]
[Termination "DaviLucasMoraisLima venceu por xeque-mate"]

1. e4 {[%clk 0:15:01.7]} 1... e5 {[%clk 0:15:03.4]} 2. Nf3 {[%clk 0:15:04.7]}
2... d6 {[%clk 0:15:05]} 3. Bc4 {[%clk 0:15:04.4]} 3... Bg4 {[%clk 0:15:08.2]}
4. h3 {[%clk 0:15:06.3]} 4... Bh5 {[%clk 0:15:10.9]} 5. O-O {[%clk 0:15:07.5]}
5... Nc6 {[%clk 0:15:13.6]} 6. Nc3 {[%clk 0:15:04.5]} 6... Nd4 {[%clk 0:15:16]}
7. d3 {[%clk 0:14:54]} 7... Nxf3+ {[%clk 0:15:15.7]} 8. Kh1 {[%clk 0:14:53.5]}
8... Qh4 {[%clk 0:14:50.7]} 9. gxf3 {[%clk 0:14:28.8]} 9... Qxh3+ {[%clk
0:14:52.9]} 10. Kg1 {[%clk 0:14:28.2]} 10... Bxf3 {[%clk 0:14:55.3]} 11. Qxf3
{[%clk 0:14:03.1]} 11... Qxf3 {[%clk 0:14:57.1]} 12. Re1 {[%clk 0:13:59.2]}
12... h5 {[%clk 0:14:59.3]} 13. Kf1 {[%clk 0:14:00.7]} 13... h4 {[%clk
0:15:02.4]} 14. Re3 {[%clk 0:13:59.7]} 14... Qh1+ {[%clk 0:14:58.1]} 15. Ke2
{[%clk 0:14:00.9]} 15... h3 {[%clk 0:14:57.4]} 16. b3 {[%clk 0:13:49.1]} 16...
h2 {[%clk 0:14:59.8]} 17. Bb2 {[%clk 0:13:46.6]} 17... Qg2 {[%clk 0:14:59.9]}
18. Rg3 {[%clk 0:13:36.2]} 18... Qxg3 {[%clk 0:14:56.4]} 19. fxg3 {[%clk
0:13:36]} 19... h1=Q {[%clk 0:14:59.3]} 20. Rxh1 {[%clk 0:13:37.5]} 20... Rxh1
{[%clk 0:15:01.1]} 21. Nb5 {[%clk 0:13:33.3]} 21... O-O-O {[%clk 0:14:58.4]} 22.
Nxa7+ {[%clk 0:13:27.7]} 22... Kb8 {[%clk 0:14:58.7]} 23. Nb5 {[%clk 0:13:30.4]}
23... Rh2+ {[%clk 0:14:59.8]} 24. Kd1 {[%clk 0:13:30.9]} 24... Be7 {[%clk
0:15:00]} 25. Bxf7 {[%clk 0:13:30.6]} 25... Nf6 {[%clk 0:15:01.3]} 26. Bc3
{[%clk 0:13:15.9]} 26... Rf8 {[%clk 0:14:59.7]} 27. Be6 {[%clk 0:13:14.7]} 27...
Nxe4 {[%clk 0:15:01.8]} 28. Bd5 {[%clk 0:13:11.8]} 28... Nxc3+ {[%clk
0:15:03.9]} 29. Nxc3 {[%clk 0:13:13.8]} 29... Rf1# {[%clk 0:15:04.7]} 0-1